bitfinex/quotes_BTCUSD_20251114
["timestamp","ask_amount","ask_price","bid_price","bid_amount"]
[1763120576358,0.55038406,96030.0,96020.0,0.003]
[1763120576631,0.34211582,96030.0,96020.0,0.003]
[1763120576861,0.0001366,96043.0,96029.0,0.19702736]
[1763120577083,0.20826572,96032.0,96030.0,0.01147]
[1763120577317,0.20826236,96033.0,96030.0,0.01147]
[1763120577533,0.3902163,96070.0,96039.0,0.01607]
[1763120577752,0.20822143,96052.0,96042.0,0.01607]
[1763120577985,0.20823824,96044.0,96042.0,0.02461]
[1763120578430,0.20824616,96041.0,96039.0,0.01033651]
[1763120578870,0.323,96048.0,96040.0,0.01147]
[1763120579094,0.3902163,96070.0,96040.0,0.01147]
[1763120579095,0.21856949,96080.0,96042.0,0.20824222]
[1763120579362,0.20818612,96068.0,96042.0,0.20824222]
[1763120579586,0.20817833,96072.0,96042.0,0.20824222]
[1763120579809,0.01040691,96090.0,96042.0,0.20824222]
[1763120580040,0.20819459,96064.0,96042.0,0.20824222]
[1763120580264,0.01040907,96070.0,96042.0,0.20824222]
[1763120581143,0.20819096,96066.0,96042.0,0.20824222]
[1763120581358,0.2082121,96056.0,96042.0,0.20824222]
[1763120581575,0.01040907,96070.0,96042.0,0.20824222]
[1763120581817,0.20816892,96076.0,96042.0,0.20824222]
[1763120582033,0.323,96078.0,96042.0,0.20924222]
[1763120582283,0.01040907,96070.0,96042.0,0.20924222]
[1763120582508,0.323,96078.0,96042.0,0.20924222]
[1763120582509,0.208176,96073.0,96042.0,0.20924222]
[1763120582725,0.20817034,96076.0,96042.0,0.20924222]
[1763120582949,0.2081534,96083.0,96042.0,0.20924222]
[1763120583141,0.323,96082.0,96042.0,0.20924222]
[1763120583615,0.323,96082.0,96042.0,0.57566096]
[1763120583834,0.20813274,96093.0,96042.0,0.57466096]
[1763120584052,0.20815062,96085.0,96080.0,0.20815889]
[1763120584265,6.646e-05,96085.0,96084.0,0.01213]
[1763120584479,6.646e-05,96085.0,96084.0,0.22028]
[1763120584707,6.646e-05,96085.0,96084.0,0.01213]
[1763120584938,6.646e-05,96085.0,96084.0,0.2202812]
[1763120585159,6.646e-05,96085.0,96084.0,0.03519177]
[1763120585381,6.646e-05,96085.0,96084.0,0.01213]
[1763120586107,6.646e-05,96085.0,96084.0,0.032827]
[1763120586328,6.646e-05,96085.0,96084.0,0.020697]
[1763120586329,0.32306646,96085.0,96084.0,0.020697]
[1763120586549,0.20818153,96070.0,96069.0,0.020697]
[1763120587612,0.323,96072.0,96069.0,0.020697]
[1763120587855,0.20818075,96071.0,96069.0,0.020697]
[1763120588494,0.001,96070.0,96069.0,0.020697]
[1763120589575,0.20818075,96071.0,96069.0,0.020697]
[1763120590557,0.001,96070.0,96069.0,0.044227]
[1763120591133,0.20818075,96071.0,96069.0,0.044227]
[1763120591335,0.20818075,96071.0,96070.0,0.02353]
[1763120591536,0.20918075,96071.0,96070.0,0.02353]
[1763120592396,0.001,96071.0,96070.0,0.0291657]
[1763120592729,0.20816855,96076.0,96071.0,0.20817936]
[1763120592880,0.323,96086.0,96084.0,0.01604]
[1763120593088,0.20814607,96087.0,96084.0,0.01604]
[1763120593089,0.20821549,96085.0,96084.0,0.03957]
[1763120593572,0.20821549,96085.0,96082.0,0.020697]
[1763120593573,6.646e-05,96085.0,96082.0,0.020697]
[1763120593764,6.646e-05,96085.0,96083.0,0.20815283]
[1763120593935,6.646e-05,96085.0,96082.0,0.020697]
[1763120594169,0.2081523,96084.0,96083.0,0.02353]
[1763120594336,6.646e-05,96085.0,96083.0,0.23168303]
[1763120594741,6.646e-05,96085.0,96084.0,0.02353]
[1763120595720,6.646e-05,96085.0,96082.0,0.020697]
[1763120595721,0.20815336,96083.0,96082.0,0.020697]
[1763120597534,0.20821549,96085.0,96083.0,0.02353]
[1763120597535,6.646e-05,96085.0,96083.0,0.02353]
[1763120597746,0.20815158,96084.0,96083.0,0.02353]
[1763120598724,0.20821592,96085.0,96083.0,0.02353]
[1763120599163,0.20821592,96085.0,96083.0,0.03724729]
[1763120599318,0.20821592,96085.0,96083.0,0.02353]
[1763120599521,0.20821592,96085.0,96082.0,0.020697]
[1763120599522,0.20815336,96083.0,96082.0,0.020697]
[1763120600089,0.2081512,96084.0,96083.0,0.02353]
[1763120600450,6.646e-05,96085.0,96083.0,0.23168309]
[1763120600616,6.646e-05,96085.0,96083.0,0.23168256]
[1763120600814,6.646e-05,96085.0,96084.0,0.09039972]
[1763120601024,6.646e-05,96085.0,96084.0,0.02353]
[1763120601246,0.20815336,96083.0,96082.0,0.020697]
[1763120602941,0.53115336,96083.0,96082.0,0.020697]
[1763120603153,0.53116853,96076.0,96075.0,0.01195]
[1763120603329,0.53116853,96076.0,96066.0,0.01213]
[1763120603330,0.20818803,96067.0,96066.0,0.01213]
[1763120603531,0.53118803,96067.0,96066.0,0.01213]
[1763120603995,0.53118803,96067.0,96040.0,0.01147]
[1763120603996,0.323,96055.0,96045.0,0.02353]
[1763120604217,0.04341874,96072.0,96040.0,0.01147]
[1763120604218,0.53122705,96049.0,96040.0,0.01147]
[1763120604432,0.53122705,96049.0,96020.0,0.003]
[1763120604433,0.53126174,96033.0,96030.0,0.01195]
[1763120604967,0.63493112,96033.0,96030.0,0.01195]
[1763120605222,0.63493112,96033.0,96032.0,0.01240431]
[1763120605223,0.53126174,96033.0,96032.0,0.01240431]
[1763120606960,0.323,96033.0,96032.0,0.01240431]
[1763120607183,0.53124222,96042.0,96041.0,0.01604]
[1763120607398,0.20826174,96033.0,96032.0,0.01240431]
[1763120607791,0.323,96044.0,96035.0,0.20825649]
[1763120608139,0.323,96041.0,96035.0,0.20825649]
[1763120608355,0.20822025,96053.0,96032.0,0.22066696]
[1763120608356,0.20821771,96054.0,96043.0,0.01604]
[1763120608562,0.20825121,96038.0,96036.0,0.08928178]
[1763120608777,0.20825121,96038.0,96037.0,0.02353]
[1763120610209,0.20925121,96038.0,96037.0,0.02353]
[1763120611333,0.20825121,96038.0,96037.0,0.02353]
[1763120611873,0.20824943,96039.0,96037.0,0.02353]
[1763120613241,0.20924943,96039.0,96037.0,0.02353]
[1763120614062,0.20924943,96039.0,96032.0,0.01240431]
[1763120614063,0.20825523,96036.0,96032.0,0.01240431]
[1763120614244,0.20826174,96033.0,96032.0,0.03730431]
[1763120614442,0.20826174,96033.0,96032.0,0.01240431]
[1763120615983,0.20826174,96033.0,96032.0,0.03730431]
[1763120616196,0.53126174,96033.0,96032.0,0.03730431]
[1763120616411,0.53126174,96033.0,96032.0,0.01240431]
[1763120616944,0.323,96033.0,96032.0,0.01240431]
[1763120617572,0.417777,96033.0,96032.0,0.00045431]
[1763120617969,0.323,96033.0,96032.0,0.00045431]
[1763120618335,0.53126174,96033.0,96032.0,0.00045431]
[1763120618966,0.53226174,96033.0,96032.0,0.00045431]
[1763120619749,0.53326174,96033.0,96032.0,0.00045431]
[1763120619934,0.53226174,96033.0,96032.0,0.00045431]
[1763120620422,0.53326174,96033.0,96032.0,0.00045431]
[1763120620635,0.53226174,96033.0,96032.0,0.00045431]
[1763120621109,0.002,96033.0,96032.0,0.02023148]
[1763120621271,0.002,96033.0,96032.0,0.22849539]
[1763120621506,0.001,96033.0,96032.0,0.22849539]
[1763120621653,0.20824941,96039.0,96036.0,0.20825442]
[1763120621865,0.20825127,96038.0,96036.0,0.020697]
[1763120622061,0.20825127,96038.0,96037.0,0.0249]
[1763120622987,0.20824659,96040.0,96037.0,0.0249]
[1763120623510,0.20824874,96039.0,96037.0,0.0249]
[1763120624554,0.20824945,96039.0,96037.0,0.0244]
[1763120625031,0.20823138,96047.0,96046.0,0.02717]
[1763120625257,0.53123138,96047.0,96046.0,0.02717]
[1763120625459,0.53123138,96047.0,96046.0,0.01151]
[1763120626117,0.323,96047.0,96046.0,0.032207]
[1763120626320,0.53123138,96047.0,96046.0,0.032207]
[1763120626954,0.323,96047.0,96046.0,0.032207]
[1763120627162,0.53123138,96047.0,96046.0,0.032207]
[1763120627741,0.39021522,96080.0,96046.0,0.05625254]
[1763120627957,0.01040799,96080.0,96069.0,0.02717]
[1763120628163,0.01040799,96080.0,96069.0,0.21969268]
[1763120628367,0.21857002,96080.0,96079.0,0.01566]
[1763120628542,0.20814704,96086.0,96079.0,0.036357]
[1763120628785,0.01040691,96090.0,96079.0,0.036357]
[1763120628786,0.21854627,96090.0,96088.0,0.02717]
[1763120628978,0.21854627,96090.0,96089.0,0.0249]
[1763120629249,0.21868315,96090.0,96089.0,0.0249]
[1763120629460,0.54168315,96090.0,96089.0,0.045597]
[1763120629873,0.54168315,96090.0,96089.0,0.020697]
[1763120629874,0.21868315,96090.0,96089.0,0.020697]
[1763120630380,0.54168315,96090.0,96089.0,0.020697]
[1763120631024,0.54168315,96090.0,96078.0,0.01151]
[1763120631025,0.20814253,96088.0,96087.0,0.01151]
[1763120631680,0.20814253,96088.0,96087.0,0.03641]
[1763120632116,0.20814253,96088.0,96087.0,0.01151]
[1763120632353,0.20914253,96088.0,96087.0,0.01151]
[1763120632782,0.53214253,96088.0,96087.0,0.01151]
[1763120633443,0.20816203,96079.0,96078.0,0.032207]
[1763120634342,0.20816203,96079.0,96062.0,0.01151]
[1763120634343,0.323,96069.0,96062.0,0.01151]
[1763120634549,0.5311967,96063.0,96062.0,0.01151]
[1763120637112,0.5321967,96063.0,96062.0,0.01151]
[1763120637341,0.5321967,96063.0,96041.0,0.0249]
[1763120637342,0.53122705,96049.0,96041.0,0.0249]
[1763120638476,0.53122705,96049.0,96048.0,0.01196431]
[1763120640582,0.56699496,96070.0,96048.0,0.01196431]
[1763120640583,0.01040907,96070.0,96048.0,0.01196431]
[1763120640794,0.01040907,96070.0,96053.0,0.20821655]
[1763120641004,0.01040907,96070.0,96053.0,0.20821644]
[1763120641212,0.01040907,96070.0,96069.0,0.02806]
[1763120641446,0.21859277,96070.0,96069.0,0.048757]
[1763120641669,0.54159277,96070.0,96069.0,0.048757]
[1763120641872,0.54159277,96070.0,96069.0,0.033167]
[1763120642527,0.54159277,96070.0,96069.0,0.01247]
[1763120643160,0.54159277,96070.0,96058.0,0.020697]
[1763120643161,0.20820537,96059.0,96058.0,0.020697]
[1763120644224,0.20822705,96049.0,96048.0,0.01196431]
[1763120645572,0.53122705,96049.0,96048.0,0.01196431]
[1763120645788,0.53122705,96049.0,96048.0,0.00045431]
[1763120649319,0.57464579,96049.0,96048.0,0.00045431]
[1763120649785,0.67831517,96049.0,96048.0,0.00045431]
[1763120650644,0.53322705,96049.0,96048.0,0.00045431]
[1763120651094,0.53222705,96049.0,96048.0,0.00045431]
[1763120651315,0.53122705,96049.0,96048.0,0.00045431]
[1763120651543,0.53222705,96049.0,96048.0,0.00045431]
[1763120651763,0.53322705,96049.0,96048.0,0.00045431]
[1763120651973,0.63689643,96049.0,96048.0,0.00045431]
[1763120652416,0.77772705,96049.0,96048.0,0.00045431]
[1763120653279,0.82114579,96049.0,96048.0,0.00045431]
[1763120653536,0.53126824,96030.0,96029.0,0.17241736]
[1763120653787,0.53172441,96030.0,96029.0,0.17241736]
[1763120654291,0.57514315,96030.0,96029.0,0.17241736]
[1763120654529,0.53172441,96030.0,96029.0,0.17241736]
[1763120655427,0.63539379,96030.0,96029.0,0.17241736]
[1763120655614,0.67881253,96030.0,96029.0,0.11615023]
[1763120655920,0.67881253,96030.0,96029.0,0.05361597]
[1763120656154,0.57514315,96030.0,96029.0,0.05361597]
[1763120656379,0.57514315,96030.0,96006.0,0.0217912]
[1763120656381,0.20818777,96021.0,96006.0,0.0217912]
[1763120656612,0.57460651,96021.0,96006.0,0.0217912]
[1763120657268,0.65257226,96021.0,96006.0,0.0217912]
[1763120657917,0.65357226,96021.0,96006.0,0.0217912]
[1763120658155,0.65357226,96021.0,96000.0,30.39193696]
[1763120658156,0.65357226,96021.0,96000.0,30.38031696]
[1763120658392,0.65357226,96021.0,96000.0,25.80192124]
[1763120658393,2.5747499,96001.0,96000.0,25.80192124]
[1763120658656,2.5747499,96001.0,96000.0,18.90953746]
[1763120658657,0.72174808,96001.0,96000.0,18.90953746]
[1763120658870,0.72174808,96001.0,96000.0,16.64806765]
[1763120658871,0.79747147,96001.0,96000.0,16.64806765]
[1763120659076,0.79747147,96001.0,96000.0,12.39612907]
[1763120659077,2.85053435,96001.0,96000.0,12.39612907]
[1763120659294,2.12017135,96001.0,96000.0,9.80592078]
[1763120659536,1.60414338,96001.0,96000.0,8.10502988]
[1763120659756,1.45688107,96001.0,96000.0,7.05008378]
[1763120659962,1.45688107,96001.0,96000.0,7.01880962]
[1763120659963,1.44043747,96001.0,96000.0,7.01880962]
[1763120660174,1.44043747,96001.0,96000.0,6.98753546]
[1763120660391,1.44043747,96001.0,96000.0,6.31876227]
[1763120660581,1.4653353,96001.0,96000.0,6.05924905]
[1763120660790,1.48361554,96001.0,96000.0,5.831545]
[1763120660925,1.46471771,96001.0,96000.0,5.73002585]
[1763120661130,1.44643747,96001.0,96000.0,5.69875169]
[1763120661330,1.46471771,96001.0,96000.0,4.3399973]
[1763120661540,1.49578221,96001.0,96000.0,4.16305111]
[1763120661717,1.48978221,96001.0,96000.0,3.68029363]
[1763120661922,1.48978221,96001.0,96000.0,2.81680551]
[1763120662259,1.45954271,96001.0,96000.0,1.4972503]
[1763120662459,1.46540612,96001.0,96000.0,0.92758625]
[1763120662807,1.48228367,96001.0,96000.0,0.3611818]
[1763120662941,0.04341874,95981.0,95977.0,0.03575074]
[1763120663143,2.53141365,95963.0,95955.0,0.00059]
[1763120663365,0.82740192,95963.0,95955.0,0.00059]
[1763120663565,0.82740192,95963.0,95910.0,0.00013563]
[1763120663566,0.82740192,95963.0,95935.0,0.09730755]
[1763120663567,0.53147231,95936.0,95935.0,0.09730755]
[1763120663769,0.53147231,95936.0,95935.0,0.0660097]
[1763120663770,0.57489105,95936.0,95935.0,0.0660097]
[1763120663966,0.59379318,95936.0,95935.0,0.02971185]
[1763120664172,0.57480626,95929.0,95910.0,0.00013563]
[1763120664584,0.57480626,95929.0,95928.0,0.14895858]
[1763120664843,0.53138752,95929.0,95928.0,0.14895858]
[1763120665011,0.57480626,95929.0,95928.0,0.14395858]
[1763120665454,0.57480626,95929.0,95928.0,0.11264856]
[1763120665674,2.07425326,95929.0,95928.0,0.05002852]
[1763120665909,2.07425326,95929.0,95884.0,0.0037171]
[1763120665910,2.07425326,95929.0,95853.0,0.12967655]
[1763120665912,0.2086463,95856.0,95853.0,0.12967655]
[1763120666109,0.005432,95887.0,95827.0,0.15694982]
[1763120666110,0.20870726,95828.0,95827.0,0.15694982]
[1763120666334,0.53170726,95828.0,95827.0,0.15694982]
[1763120666646,0.749681,95828.0,95827.0,1e-08]
[1763120666842,0.749681,95828.0,95810.0,0.00013596]
[1763120666843,0.20874211,95812.0,95810.0,0.00013596]
[1763120667069,0.323,95811.0,95810.0,0.00013596]
[1763120667278,0.323,95811.0,95800.0,0.063338]
[1763120667279,0.323,95811.0,95800.0,1e-08]
[1763120667280,0.20876608,95801.0,95800.0,1e-08]
[1763120667485,0.00999999,95810.0,95800.0,1e-08]
[1763120667662,0.55658589,95830.0,95800.0,1e-08]
[1763120667868,0.323,95817.0,95800.0,1e-08]
[1763120668069,0.003,95828.0,95800.0,1e-08]
[1763120668287,0.00162217,95828.0,95804.0,0.09294592]
[1763120668500,0.00162217,95828.0,95827.0,0.01162]
[1763120668710,0.00045,95886.0,95840.0,0.00499999]
[1763120668910,0.00045,95886.0,95830.0,0.01043514]
[1763120668911,0.51022743,95900.0,95830.0,0.01043514]
[1763120668912,0.005,95860.0,95830.0,0.01043514]
[1763120669125,0.51022743,95900.0,95854.0,0.09294592]
[1763120669126,0.005,95880.0,95854.0,0.09294592]
[1763120669367,0.005,95860.0,95831.0,0.05921762]
[1763120669656,0.005,95870.0,95844.0,0.2086718]
[1763120669862,0.005,95870.0,95844.0,0.0001366]
[1763120670086,0.005,95870.0,95850.0,0.01043296]
[1763120670318,0.001,95886.0,95850.0,0.01043296]
[1763120670319,0.001,95886.0,95869.0,0.04624]
[1763120670553,0.005,95890.0,95871.0,0.2086123]
[1763120670795,0.005,95890.0,95874.0,0.09294592]
[1763120671054,0.49979991,95900.0,95874.0,0.09294592]
[1763120671055,0.49979991,95900.0,95899.0,0.20855274]
[1763120671293,0.00589,95958.0,95899.0,0.20855274]
[1763120671294,0.005,95940.0,95910.0,0.01042644]
[1763120671534,0.02695954,95967.0,95910.0,0.01042644]
[1763120671535,0.005,95960.0,95931.0,0.04341874]
[1763120671747,0.005,95970.0,95955.0,0.04376]
[1763120671968,0.00545532,95970.0,95955.0,0.04376]
[1763120672177,0.00045532,95970.0,95958.0,0.09294592]
[1763120672385,0.00045532,95970.0,95959.0,0.09683]
[1763120672591,0.00045532,95970.0,95965.0,0.20840787]
[1763120672793,0.00045532,95970.0,95960.0,0.55658589]
[1763120672794,0.00045532,95970.0,95967.0,0.20840324]
[1763120672997,0.00045532,95970.0,95969.0,0.20840062]
[1763120673206,0.00145532,95970.0,95969.0,0.20840062]
[1763120673420,0.00145532,95970.0,95961.0,0.04341874]
[1763120673629,0.00045532,95970.0,95969.0,0.13636466]
[1763120673840,0.02695954,96027.0,95969.0,0.13636466]
[1763120673842,0.005,96020.0,95998.0,0.20833646]
[1763120674047,0.005,96020.0,96010.0,0.55658589]
[1763120674254,0.25699664,96045.0,96010.0,0.55658589]
[1763120674255,0.005,96030.0,96010.0,0.55658589]
[1763120674662,0.005,96020.0,96001.0,0.020697]
[1763120675290,0.005,96020.0,96010.0,0.55658589]
[1763120675500,0.005,96020.0,96011.0,0.05565859]
[1763120675713,0.01041232,96040.0,96019.0,0.01162]
[1763120675714,0.005,96040.0,96019.0,0.01162]
[1763120675921,0.005,96050.0,96033.0,0.09294592]
[1763120676133,0.10922,96075.0,96033.0,0.09294592]
[1763120676134,0.02695954,96085.0,96050.0,0.01541123]
[1763120676338,0.005,96080.0,96070.0,0.55658589]
[1763120676543,0.005,96080.0,96063.0,0.020697]
[1763120676544,0.20817255,96075.0,96063.0,0.020697]
[1763120676748,0.20817255,96075.0,96060.0,0.55658589]
[1763120676749,0.02159593,96094.0,96060.0,0.55658589]
[1763120676750,0.20817936,96071.0,96060.0,0.00999999]
[1763120676960,0.20817936,96071.0,96020.0,0.01041449]
[1763120676961,0.01041016,96060.0,96020.0,0.00999999]
[1763120677185,0.20826486,96032.0,96020.0,0.00999999]
[1763120677420,0.20827898,96026.0,96020.0,0.00999999]
[1763120677613,0.2082629,96033.0,96020.0,0.00999999]
[1763120677827,0.20826738,96031.0,96020.0,0.00999999]
[1763120678047,0.20826608,96031.0,96030.0,0.00999999]
[1763120678257,0.20826608,96031.0,96020.0,0.00999999]
[1763120678533,0.0495,96047.0,96030.0,0.01013659]
[1763120678769,0.33818065,96071.0,96050.0,0.00999999]
[1763120678986,0.01040691,96090.0,96070.0,0.00999999]
[1763120679203,0.01040582,96100.0,96040.0,0.01041232]
[1763120679204,0.002,96071.0,96060.0,0.03069699]
[1763120679405,0.01040582,96100.0,96090.0,0.00999999]
[1763120679702,0.20813458,96092.0,96080.0,0.00999999]
[1763120679959,0.20814209,96089.0,96080.0,0.00999999]
[1763120680110,0.20811437,96101.0,96100.0,0.00999999]
[1763120680284,0.20812687,96096.0,96090.0,0.00999999]
[1763120680497,0.00045617,96101.0,96090.0,0.00999999]
[1763120680697,0.20813316,96093.0,96090.0,0.00999999]
[1763120680902,0.00045617,96101.0,96090.0,0.00999999]
[1763120681235,0.2081288,96095.0,96080.0,0.00999999]
[1763120681468,0.20813578,96092.0,96080.0,0.00999999]
[1763120681594,0.00045617,96101.0,96090.0,0.00999999]
[1763120681595,0.002,96100.0,96090.0,0.00999999]
[1763120681800,0.002,96100.0,96091.0,0.12697]
[1763120682020,0.002,96100.0,96096.0,0.09294592]
[1763120682225,0.00045617,96101.0,96097.0,0.20812304]
[1763120682436,0.00045617,96101.0,96100.0,0.57453528]
[1763120682644,0.0002,96150.0,96140.0,0.00999999]
[1763120682885,0.00033686,96150.0,96140.0,0.03069699]
[1763120683105,0.00033686,96150.0,96141.0,0.09683]
[1763120683383,0.00033686,96150.0,96143.0,0.09294592]
[1763120683594,0.00033686,96150.0,96144.0,0.09683]
[1763120683811,0.00033686,96150.0,96145.0,0.09294592]
[1763120684016,0.00033686,96150.0,96149.0,0.53101048]
[1763120684215,0.00033686,96150.0,96149.0,0.36641874]
[1763120684442,0.00033686,96150.0,96149.0,0.44411521]
[1763120685602,0.00013686,96180.0,96179.0,0.2079456]
[1763120685815,0.00027352,96180.0,96179.0,0.59506134]
[1763120686264,0.2079434,96222.0,96201.0,0.04341874]
[1763120686265,9e-05,96222.0,96201.0,0.04341874]
[1763120686468,0.00065543,96210.0,96208.0,0.04341874]
[1763120686666,0.00065543,96210.0,96209.0,0.66724541]
[1763120686875,9e-05,96222.0,96213.0,0.04341874]
[1763120687089,0.00924036,96216.0,96213.0,0.020697]
[1763120687373,0.00924036,96216.0,96215.0,0.323]
[1763120687748,0.00924036,96216.0,96214.0,0.06645193]
[1763120687943,0.00924036,96216.0,96213.0,0.020697]
[1763120688145,9e-05,96222.0,96214.0,0.09683]
[1763120688402,9e-05,96222.0,96220.0,0.20785488]
[1763120688647,9e-05,96222.0,96214.0,0.09683]
[1763120688648,9e-05,96222.0,96221.0,0.03046849]
[1763120689464,9e-05,96222.0,96213.0,0.343697]
[1763120689465,9e-05,96222.0,96220.0,0.001]
[1763120689668,9e-05,96222.0,96220.0,0.002]
[1763120690022,0.20794402,96222.0,96220.0,0.001]
[1763120690236,9e-05,96222.0,96210.0,0.00999999]
[1763120690452,0.57429517,96211.0,96210.0,0.00045543]
[1763120691898,0.13,96213.0,96210.0,0.00045543]
[1763120692106,0.001,96211.0,96210.0,0.00045543]
[1763120692514,0.0002,96230.0,96212.0,0.20787427]
[1763120692728,0.0002,96230.0,96213.0,0.03051597]
[1763120693305,0.0002,96230.0,96210.0,0.01045542]
[1763120693730,0.20787314,96213.0,96210.0,0.00045543]
[1763120694343,0.20787643,96211.0,96210.0,0.00045543]
[1763120695335,0.323,96221.0,96210.0,0.00045543]
[1763120695336,0.04341874,96238.0,96210.0,0.01045542]
[1763120695562,0.37176,96239.0,96210.0,0.01045542]
[1763120695563,0.20784201,96227.0,96210.0,0.01145542]
[1763120695760,0.04876,96239.0,96210.0,0.01145542]
[1763120695761,0.0002,96240.0,96220.0,0.2078552]
[1763120695985,0.0002,96240.0,96221.0,0.11761552]
[1763120697066,0.0002,96240.0,96221.0,0.44061552]
[1763120697280,0.0002,96240.0,96221.0,0.48403426]
[1763120697490,9e-05,96230.0,96229.0,0.20783755]
[1763120697695,0.0002,96270.0,96227.0,0.20784018]
[1763120697696,0.0002,96270.0,96261.0,0.20776682]
[1763120697867,0.0002,96270.0,96262.0,0.32248679]
[1763120698103,0.0002,96270.0,96269.0,0.04624]
[1763120698308,0.0002,96270.0,96262.0,0.02177668]
[1763120698511,0.20776466,96263.0,96250.0,0.00999999]
[1763120698723,0.20778789,96252.0,96251.0,0.020697]
[1763120698933,0.20778314,96255.0,96250.0,0.00999999]
[1763120699135,0.00013655,96263.0,96250.0,0.00999999]
[1763120699136,0.20779004,96251.0,96250.0,0.00999999]
[1763120699336,0.03945,96261.0,96240.0,0.03069699]
[1763120699507,0.20780262,96246.0,96240.0,0.03069699]
[1763120699709,0.00013655,96263.0,96240.0,0.03069699]
[1763120699936,0.323,96257.0,96240.0,0.03069699]
[1763120700113,0.323,96257.0,96250.0,0.00999999]
[1763120700339,0.00013655,96263.0,96250.0,0.00999999]
[1763120700477,0.00013655,96263.0,96250.0,0.03069699]
[1763120700478,0.20777251,96260.0,96250.0,0.03069699]
[1763120700662,0.00013655,96263.0,96252.0,0.20778789]
[1763120700853,0.00013655,96263.0,96253.0,0.04218008]
[1763120701532,0.00013655,96263.0,96254.0,0.09294592]
[1763120701749,0.00013655,96263.0,96257.0,0.09294592]
[1763120701987,0.00013655,96263.0,96250.0,0.12106699]
[1763120701988,0.00013655,96263.0,96251.0,0.09037]
[1763120702152,0.00013655,96263.0,96250.0,0.03069699]
[1763120702153,0.20778899,96252.0,96250.0,0.020697]
[1763120702503,0.00013655,96263.0,96240.0,0.00999999]
[1763120702709,0.00013655,96263.0,96250.0,0.00999999]
[1763120702919,0.04963655,96263.0,96250.0,0.00999999]
[1763120703125,0.04963655,96263.0,96239.0,0.020697]
[1763120703126,0.20781379,96240.0,96239.0,0.020697]
[1763120703337,0.20781379,96240.0,96203.0,0.09037]
[1763120703338,0.20783323,96231.0,96220.0,0.00999999]
[1763120703542,0.01039068,96240.0,96210.0,0.00999999]
[1763120703742,0.01039068,96240.0,96230.0,0.00999999]
[1763120703942,0.5,96279.0,96210.0,0.0121067]
[1763120703943,0.20779004,96251.0,96250.0,0.00999999]
[1763120704150,0.0495,96267.0,96230.0,0.00999999]
[1763120704151,0.20781405,96240.0,96230.0,0.00999999]
[1763120704361,0.20786335,96218.0,96210.0,0.00999999]
[1763120704573,0.20786471,96217.0,96210.0,0.00999999]
[1763120704776,0.20786471,96217.0,96188.0,0.20792452]
[1763120704777,0.33339176,96230.0,96186.0,0.020697]
[1763120704976,0.01039284,96220.0,96193.0,0.04669543]
[1763120705108,0.20789771,96202.0,96193.0,0.04669543]
[1763120705311,0.20786347,96217.0,96194.0,0.00566954]
[1763120705533,0.01039284,96220.0,96194.0,0.00566954]
[1763120705872,0.01039284,96220.0,96200.0,0.00999999]
[1763120705873,0.53087643,96212.0,96200.0,0.00999999]
[1763120706188,0.53087643,96211.0,96210.0,0.00999999]
[1763120706362,0.41567756,96229.0,96193.0,0.00045543]
[1763120706363,0.323,96227.0,96220.0,0.00999999]
[1763120706646,0.20791122,96195.0,96193.0,0.00045543]
[1763120706834,0.20791122,96195.0,96174.0,0.020697]
[1763120706835,1.98954458,96181.0,96174.0,0.020697]
[1763120707042,1.98954458,96181.0,96176.0,0.20794998]
[1763120707250,1.98954458,96181.0,96178.0,0.30089176]
[1763120707428,1.98954458,96181.0,96180.0,0.25136217]
[1763120707634,1.98954458,96181.0,96180.0,0.57436217]
[1763120707842,1.98954458,96181.0,96180.0,0.53094343]
[1763120708042,1.98954458,96181.0,96180.0,0.57436217]
[1763120708247,1.98954458,96181.0,96180.0,0.67803155]
[1763120708457,1.98954458,96181.0,96178.0,0.09294592]
[1763120708673,1.98954458,96181.0,96174.0,0.02083355]
[1763120708903,1.98954458,96181.0,96179.0,0.30088972]
[1763120709098,1.98954458,96181.0,96180.0,0.14195874]
[1763120709274,1.98954458,96181.0,96180.0,0.46595874]
[1763120709479,1.98954458,96181.0,96180.0,0.47108812]
[1763120709680,1.98954458,96181.0,96180.0,0.49008812]
[1763120710084,1.98954458,96181.0,96180.0,0.47008812]
[1763120710414,1.98954458,96181.0,96180.0,0.42666938]
[1763120710618,1.98954458,96181.0,96179.0,0.09294592]
[1763120710827,1.98954458,96181.0,96180.0,0.001]
[1763120711687,2.52048585,96181.0,96180.0,0.001]
[1763120711894,2.56390459,96181.0,96180.0,0.001]
[1763120712108,2.56390459,96181.0,96179.0,0.002]
[1763120712109,0.323,96180.0,96179.0,0.002]
[1763120712312,0.323,96180.0,96174.0,0.00013655]
[1763120712313,0.53095425,96175.0,96174.0,0.00013655]
[1763120712552,0.59343694,96175.0,96174.0,0.00013655]
[1763120712945,0.01039933,96160.0,96130.0,0.020697]
[1763120713166,0.01039933,96160.0,96133.0,0.00013666]
[1763120713167,0.323,96158.0,96133.0,0.00013666]
[1763120713385,0.2080428,96135.0,96133.0,0.00013666]
[1763120713806,0.323,96134.0,96133.0,0.00013666]
[1763120715233,0.001,96134.0,96133.0,0.00013666]
[1763120715648,0.001,96134.0,96133.0,0.00113666]
[1763120715844,0.323,96134.0,96133.0,0.00013666]
[1763120716325,0.2080176,96146.0,96133.0,0.00013666]
[1763120716326,0.04326,96158.0,96133.0,0.00013666]
[1763120716555,0.22703663,96157.0,96134.0,0.04162404]
[1763120716776,0.01039717,96180.0,96135.0,0.09754]
[1763120716995,0.01039933,96160.0,96135.0,0.020697]
[1763120717220,0.01039825,96170.0,96140.0,0.20802995]
[1763120717433,0.01039825,96170.0,96141.0,0.04192129]
[1763120717434,0.01903782,96169.0,96141.0,0.04192129]
[1763120717647,0.01039933,96160.0,96133.0,0.00013666]
[1763120717854,0.01903782,96159.0,96133.0,0.00013666]
[1763120718067,0.04341874,96157.0,96133.0,0.00013666]
[1763120718272,0.20804274,96135.0,96133.0,0.00013666]
[1763120718474,0.04341874,96158.0,96133.0,0.00013666]
[1763120718644,0.01902195,96157.0,96133.0,0.00013666]
[1763120718937,0.20804283,96135.0,96133.0,0.00013666]
[1763120720014,0.323,96134.0,96133.0,0.00013666]
[1763120720246,0.38542272,96134.0,96133.0,0.00013666]
[1763120720495,0.04341874,96129.0,96100.0,4e-05]
[1763120720736,0.20811364,96102.0,96100.0,0.00017686]
[1763120720957,0.323,96105.0,96100.0,0.00017686]
[1763120721879,0.20811222,96102.0,96100.0,0.00017686]
[1763120722312,0.323,96101.0,96100.0,0.00017686]
[1763120723257,0.20810734,96105.0,96100.0,0.00017686]
[1763120723467,0.323,96101.0,96100.0,0.00017686]